bitfinex/quotes_SOLUSD_20241213
["timestamp","ask_amount","ask_price","bid_price","bid_amount"]
[1734090870498,8.21621787,226.06,226.03,0.12549]
[1734090875477,8.21621787,226.04,226.02,0.12549]
[1734090875677,8.21621787,226.03,226.02,0.12549]
[1734090883701,8.21621787,226.03,225.97,1.5245]
[1734090883890,8.21621787,225.98,225.95,6.1619]
[1734090884086,8.21621787,225.97,225.95,6.1619]
[1734090884894,8.21621787,225.97,225.93,16.24273412]
[1734090884895,8.21621787,225.96,225.92,1.5806]
[1734090886214,8.21621787,225.96,225.93,0.12549]
[1734090889910,8.21621787,225.96,225.88,11.0677]
[1734090889911,8.21621787,225.96,225.91,0.25098]
[1734090890486,8.21621787,225.95,225.89,32.24408187]
[1734090890693,8.21621787,225.94,225.89,24.027864]
[1734090892828,20.0,226.0,225.89,24.027864]
[1734090893121,8.21621787,225.96,225.9,8.21621787]
[1734090893297,8.21621787,225.96,225.91,0.12549]
[1734090893498,8.21621787,225.95,225.91,0.12549]
[1734090893910,8.21621787,225.95,225.9,0.12549]
[1734090896111,8.21621787,225.94,225.9,0.12549]
[1734090900518,20.0,226.0,225.9,0.12549]
[1734090900709,8.21621787,225.95,225.9,0.12549]
[1734090904607,11.0605,226.03,225.9,0.12549]
[1734090904800,8.21621787,225.95,225.9,0.12549]
[1734090907814,8.21621787,225.94,225.9,0.12549]
[1734090909716,8.21621787,225.94,225.89,0.25098]
[1734090909923,8.21621787,225.94,225.89,0.12549]
[1734090910730,8.21621787,225.95,225.89,32.24408187]
[1734090912826,8.21621787,225.95,225.9,8.21621787]
[1734090913326,8.21621787,225.95,225.91,0.12549]
[1734090915531,8.21621787,225.95,225.9,0.12549]
[1734090917115,8.21621787,225.94,225.88,8.21621787]
[1734090917319,8.21621787,225.93,225.88,0.25098]
[1734090921926,8.21621787,225.93,225.88,0.12549]
[1734090925513,8.21621787,225.92,225.88,0.12549]
[1734090925727,8.21621787,225.89,225.88,0.12549]
[1734090925918,8.21621787,225.89,225.83,0.12549]
[1734090926125,8.21621787,225.87,225.81,27.73612254]
[1734090926319,8.21621787,225.86,225.81,8.44910467]
[1734090926517,8.21621787,225.87,225.81,16.66532254]
[1734090927615,8.21621787,225.87,225.81,9.73131787]
[1734090928125,27.94743359,225.96,225.86,8.21621787]
[1734090928326,8.21621787,225.93,225.87,8.21621787]
[1734090928633,27.94743359,225.96,225.89,0.12549]
[1734090928938,8.21621787,225.94,225.89,0.12549]
[1734090929826,27.94743359,225.96,225.91,8.34170787]
[1734090930031,27.94743359,225.96,225.93,0.12549]
[1734090930932,27.94743359,225.96,225.92,0.12549]
[1734090931856,11.0595,226.05,225.94,0.12549]
[1734090932041,8.21621787,226.01,225.95,8.21621787]
[1734090932227,8.21621787,226.01,225.96,0.12549]
[1734090934340,1.5338,226.07,225.96,0.12549]
[1734090934341,8.21621787,226.03,225.96,8.21621787]
[1734090934536,8.21621787,226.03,225.97,0.12549]
[1734090934721,8.21621787,226.01,225.97,0.12549]
[1734090935154,8.21621787,226.01,225.95,0.12549]
[1734090935318,20.0,226.05,225.96,8.21621787]
[1734090935518,20.0,226.05,225.97,0.12549]
[1734090935830,8.21621787,226.02,225.97,0.12549]
[1734090936214,120.29443698,226.13,225.98,0.12549]
[1734090936446,8.21621787,226.05,226.0,0.12549]
[1734090937154,8.21621787,226.05,225.99,0.12549]
[1734090937348,11.056,226.12,225.99,0.12549]
[1734090937522,20.0,226.09,225.99,8.46719787]
[1734090937721,8.21621787,226.06,225.99,8.46719787]
[1734090938119,8.21621787,226.04,225.99,0.25098]
[1734090938441,20.0,226.09,226.01,0.12549]
[1734090938642,8.21621787,226.05,226.01,0.12549]
[1734090939137,8.21621787,226.05,226.0,0.12549]
[1734090939538,8.21621787,226.03,226.0,0.12549]
[1734090939852,8.21621787,226.02,226.0,0.12549]
[1734090941135,8.21621787,226.03,226.0,0.12549]
[1734090941323,8.21621787,226.03,225.98,0.12549]
[1734090941741,20.0,226.09,225.98,0.12549]
[1734090942023,8.21621787,226.04,225.99,0.12549]
[1734090943441,8.21621787,226.03,225.97,0.12549]
[1734090943827,8.21621787,226.02,225.97,0.12549]
[1734090944652,8.21621787,226.03,225.97,8.34170787]
[1734090945036,20.0,226.08,225.99,0.12549]
[1734090945366,8.21621787,226.05,225.99,0.12549]
[1734090946027,8.21621787,226.04,225.99,0.12549]
[1734090946228,8.21621787,226.03,225.98,0.12549]
[1734090946427,8.21621787,226.03,225.98,0.25098]
[1734090947057,8.21621787,226.02,225.97,0.25098]
[1734090947230,8.21621787,226.01,225.97,0.12549]
[1734090947539,11.0576,226.09,225.96,0.12549]
[1734090947741,8.21621787,226.02,225.96,0.12549]
[1734090948762,8.21621787,226.01,225.96,0.12549]
[1734090949268,109.53222788,226.11,225.98,8.21621787]
[1734090949433,8.21621787,226.05,225.99,0.12549]
[1734090949760,8.21621787,226.04,225.99,0.12549]
[1734090950065,8.21621787,226.03,225.98,0.12549]
[1734090950262,8.21621787,226.04,225.98,8.34170787]
[1734090950822,8.21621787,226.04,225.99,0.12549]
[1734090951560,27.93222788,226.11,226.0,8.21621787]
[1734090951753,8.21621787,226.07,226.01,8.34170787]
[1734090951928,27.93222788,226.11,226.01,8.34170787]
[1734090952130,8.21621787,226.07,226.01,8.34170787]
[1734090952767,8.21621787,226.07,226.02,0.12549]
[1734090953059,8.21621787,226.08,226.03,0.12549]
[1734090953775,27.93222788,226.11,226.03,9.97810787]
[1734090953931,27.93222788,226.11,226.05,0.12549]
[1734090953932,8.21621787,226.1,226.05,0.12549]
[1734090955371,36.14844575,226.11,226.05,0.12549]
[1734090955743,27.93222788,226.11,226.05,8.21621787]
[1734090956071,27.93222788,226.11,226.04,23.902374]
[1734090956271,8.21621787,226.1,226.04,0.12549]
[1734090957832,8.21621787,226.06,226.04,0.12549]
[1734090959037,8.21621787,226.07,226.04,0.12549]
[1734090959475,8.21621787,226.06,226.04,0.12549]
[1734090960669,8.21621787,226.05,226.02,0.12549]
[1734090960852,8.21621787,226.03,226.02,0.12549]
[1734090961039,8.21621787,226.03,225.97,1.5745]
[1734090961241,8.21621787,226.01,225.97,1.5745]
[1734090962235,8.21621787,226.0,225.97,1.5745]
[1734090963255,8.21621787,226.0,225.98,0.12549]
[1734090964049,8.21621787,225.99,225.98,0.12549]
[1734090965953,8.21621787,225.99,225.96,0.12549]
[1734090966163,8.21621787,225.98,225.96,0.12549]
[1734090967052,8.21621787,225.97,225.96,0.12549]
[1734090969447,8.21621787,225.97,225.92,1.6508]
[1734090969670,8.21621787,225.95,225.92,1.6508]
[1734090970774,8.21621787,225.95,225.93,0.12549]
[1734090974761,8.21621787,225.96,225.93,0.12549]
[1734090975163,20.0,226.02,225.93,0.12549]
[1734090975353,8.21621787,225.98,225.93,0.12549]
[1734090975762,8.21621787,225.97,225.93,0.12549]
[1734090976263,45.56087148,226.05,225.93,0.12549]
[1734090976471,8.21621787,225.99,225.93,0.12549]
[1734090979561,20.0,226.05,225.95,0.12549]
[1734090979860,8.21621787,226.0,225.95,0.12549]
[1734090980758,8.21621787,226.01,225.95,0.12549]
[1734090980964,8.21621787,225.99,225.93,28.34170787]
[1734090982265,20.0,226.05,225.95,8.21621787]
[1734090982465,8.21621787,226.01,225.96,0.12549]
[1734090983293,1.5748,226.1,225.97,8.34170787]
[1734090983466,1.5748,226.1,225.99,0.12549]
[1734090983666,8.21621787,226.05,225.99,8.34170787]
[1734090987482,8.21621787,226.06,226.01,0.12549]
[1734090988769,8.21621787,226.06,226.0,23.902374]
[1734090988770,27.93222788,226.11,226.0,0.12549]
[1734090988973,8.21621787,226.02,226.0,0.12549]
[1734090994486,8.21621787,226.03,226.0,0.12549]
[1734090999895,27.93222788,226.11,226.02,0.12549]
[1734091000191,8.21621787,226.08,226.02,32.24408187]
[1734091000381,8.21621787,226.09,226.03,8.21621787]
[1734091000583,8.21621787,226.09,226.04,0.12549]
[1734091002075,8.21621787,226.08,226.02,0.25098]
[1734091002276,8.21621787,226.09,226.03,8.21621787]
[1734091002795,8.21621787,226.09,226.04,0.12549]
[1734091002995,8.21621787,226.09,226.03,8.21621787]
[1734091002996,8.21621787,226.08,226.02,8.46719787]
[1734091011711,8.21621787,226.1,226.05,0.12549]
[1734091011928,27.93222788,226.11,226.05,32.24408187]
[1734091012088,8.21621787,226.12,226.07,0.12549]
[1734091012414,8.21621787,226.13,226.07,0.12549]
[1734091013178,8.21621787,226.12,226.07,0.12549]
[1734091014878,8.21621787,226.13,226.07,24.027864]
[1734091015085,7.6766,226.22,226.09,32.11859187]
[1734091015381,8.21621787,226.16,226.11,0.12549]
[1734091016303,20.0,226.21,226.11,0.12549]
[1734091016604,8.21621787,226.17,226.11,8.21621787]
[1734091016799,8.21621787,226.17,226.12,0.12549]
[1734091018302,8.21621787,226.16,226.11,0.12549]
[1734091019193,11.0485,226.28,226.15,8.21621787]
[1734091019499,8.21621787,226.22,226.16,32.24408187]
[1734091020018,8.21621787,226.22,226.16,8.34170787]
[1734091020312,8.21621787,226.17,226.13,0.12549]
[1734091020620,8.21621787,226.16,226.13,0.12549]
[1734091021799,8.21621787,226.15,226.13,0.12549]
[1734091022002,8.21621787,226.16,226.13,0.12549]
[1734091022212,51.27160815,226.26,226.13,0.12549]
[1734091022213,8.21621787,226.17,226.13,0.12549]
[1734091023692,8.21621787,226.14,226.13,0.12549]
[1734091024316,8.21621787,226.15,226.13,0.12549]
[1734091031217,8.21621787,226.14,226.05,8.0069]
[1734091031517,8.21621787,226.09,226.05,8.0069]
[1734091032724,8.21621787,226.09,226.06,0.12549]
[1734091033027,8.21621787,226.09,226.05,8.0069]
[1734091034227,8.21621787,226.09,226.06,0.12549]
[1734091034539,8.21621787,226.08,226.06,0.12549]
[1734091034906,8.21621787,226.07,226.06,0.12549]
[1734091035110,8.21621787,226.07,226.04,0.12549]
[1734091035311,8.21621787,226.08,226.04,0.12549]
[1734091036966,8.21621787,226.08,226.03,0.12549]
[1734091037115,8.21621787,226.08,226.03,24.027864]
[1734091039714,8.21621787,226.07,226.03,24.027864]
[1734091039933,7.71621787,226.07,226.03,24.027864]
[1734091041028,8.21621787,226.08,226.03,24.027864]
[1734091041333,20.0,226.17,226.06,24.027864]
[1734091041512,8.21621787,226.12,226.08,24.027864]
[1734091041714,8.21621787,226.11,226.08,24.027864]
[1734091041910,8.21621787,226.1,226.07,0.25098]
[1734091042436,32.86487148,226.16,226.07,0.25098]
[1734091042622,8.21621787,226.1,226.07,0.25098]
[1734091043021,8.21621787,226.11,226.07,0.25098]
[1734091043528,8.21621787,226.12,226.08,23.776884]
[1734091043721,8.21621787,226.12,226.09,0.12549]
[1734091044712,8.21621787,226.12,226.08,0.12549]
[1734091046309,8.21621787,226.11,226.08,0.12549]
[1734091048225,8.21621787,226.11,226.06,24.027864]
[1734091053429,8.21621787,226.12,226.06,24.027864]
[1734091055643,8.21621787,226.09,226.06,24.027864]
[1734091055850,8.21621787,226.08,226.03,0.66334567]
[1734091056146,8.21621787,226.08,226.03,0.12549]
[1734091056439,8.21621787,226.04,225.98,6.93400467]
[1734091056646,8.21621787,226.04,225.97,0.66349254]
[1734091056647,8.21621787,226.02,225.97,0.66349254]
[1734091056832,8.21621787,226.04,225.98,8.21621787]
[1734091057032,20.0,226.12,225.99,8.87981255]
[1734091057229,8.21621787,226.06,226.0,8.21621787]
[1734091057433,8.21621787,226.06,226.01,0.66354197]
[1734091057832,8.21621787,226.06,226.02,0.12549]
[1734091059842,8.21621787,226.05,226.02,0.12549]
[1734091061533,1.5237,226.13,226.02,24.027864]
[1734091061736,17.4866,226.15,226.02,24.027864]
[1734091061737,8.21621787,226.09,226.04,8.34170787]
[1734091062853,11.0546,226.15,226.04,8.34170787]
[1734091063046,11.0546,226.15,226.04,24.027864]
[1734091063047,8.21621787,226.09,226.04,24.027864]
[1734091063934,8.21621787,226.08,226.04,24.027864]
[1734091064643,8.21621787,226.06,226.04,0.12549]
[1734091064834,8.21621787,226.05,226.02,1.6195]
[1734091066243,8.21621787,226.05,226.03,0.12549]
[1734091070861,20.0,226.12,226.03,0.12549]
[1734091071035,8.21621787,226.05,226.03,0.12549]
[1734091071967,8.21621787,226.06,226.03,0.12549]
[1734091073572,81.6,226.17,226.04,20.0]
[1734091073873,8.21621787,226.09,226.03,32.90761065]
[1734091076449,8.21621787,226.08,226.03,24.69139278]
[1734091079049,8.21621787,226.09,226.03,32.90761065]
[1734091081454,8.21621787,226.08,226.03,24.69139278]
[1734091081856,8.21621787,226.07,226.03,24.69139278]
[1734091082565,8.21621787,226.07,226.03,24.027864]
[1734091082769,8.21621787,226.07,226.03,0.12549]
[1734091087374,8.21621787,226.06,226.03,0.12549]
[1734091087559,43.91897148,226.16,226.03,0.12549]
[1734091087560,8.21621787,226.05,226.03,0.12549]
[1734091092874,8.21621787,226.06,226.03,0.12549]
[1734091093474,20.0,226.13,226.03,24.69138033]
[1734091093767,8.21621787,226.09,226.03,24.69138033]
[1734091094152,8.21621787,226.09,226.03,32.9075982]
[1734091100376,8.21621787,226.09,226.03,24.69138033]
[1734091101969,8.21621787,226.08,226.03,24.69138033]
[1734091102385,8.21621787,226.05,226.03,0.12549]
[1734091102559,8.21621787,226.04,226.02,0.12549]
[1734091102877,8.21621787,226.03,225.99,0.66355256]
[1734091103061,8.21621787,226.03,226.0,20.0]
[1734091103258,8.21621787,226.02,226.0,20.0]
[1734091103662,8.21621787,226.02,225.99,20.0]
[1734091103862,8.21621787,226.01,225.99,20.0]
[1734091104063,8.21621787,226.02,225.99,20.0]
[1734091104263,8.21621787,226.02,226.0,0.12549]
[1734091104962,8.21621787,226.01,225.98,24.027864]
[1734091105164,8.21621787,226.01,225.98,0.12549]
[1734091105475,8.21621787,226.0,225.97,1.6621]
[1734091105679,8.21621787,225.98,225.96,23.776884]
[1734091105867,8.21621787,225.98,225.95,23.776884]
[1734091106679,8.21621787,225.96,225.93,6.93400467]
[1734091106869,8.21621787,225.95,225.92,8.45510467]
[1734091107062,32.86487148,226.05,225.92,8.45510467]
[1734091107063,8.21621787,225.96,225.92,8.45510467]
[1734091107263,8.21621787,225.96,225.92,1.5211]
[1734091108062,8.21621787,225.96,225.93,24.027864]
[1734091109288,32.86487148,226.05,225.93,24.027864]
[1734091109289,8.21621787,225.97,225.93,24.027864]
[1734091110068,20.0,226.07,225.93,24.027864]
[1734091110275,20.0,226.06,225.93,32.90783093]
[1734091110578,32.86487148,226.05,225.93,32.90783093]
[1734091110787,8.21621787,225.99,225.93,32.90783093]
[1734091111998,8.21621787,225.98,225.93,24.69161306]
[1734091117590,8.21621787,225.97,225.93,24.027864]
[1734091126674,8.21621787,225.98,225.93,24.69161622]
[1734091130705,8.21621787,225.99,225.93,24.69161622]
[1734091131303,8.21621787,225.94,225.89,20.0]
[1734091131604,8.21621787,225.93,225.89,20.0]
[1734091132502,8.21621787,225.93,225.9,24.027864]
[1734091132903,8.21621787,225.93,225.87,0.66374906]
[1734091132904,8.21621787,225.91,225.87,0.66374906]
[1734091134212,8.21621787,225.91,225.86,0.12549]
[1734091135188,8.21621787,225.91,225.86,24.027864]
[1734091135401,8.21621787,225.92,225.86,24.027864]
[1734091136101,8.21621787,225.91,225.86,24.027864]
[1734091137309,8.21621787,225.92,225.86,24.027864]
[1734091141032,8.21621787,225.89,225.86,0.25098]
[1734091141321,8.21621787,225.89,225.85,24.027864]
[1734091141507,8.21621787,225.88,225.85,0.25098]
[1734091141919,8.21621787,225.89,225.85,0.25098]
[1734091142833,8.21621787,225.9,225.85,0.25098]
[1734091143522,8.21621787,225.89,225.85,0.25098]
[1734091146525,8.21621787,225.88,225.85,0.25098]
[1734091148038,8.21621787,225.86,225.84,0.25098]
[1734091148205,8.21621787,225.86,225.84,0.12549]
[1734091148804,8.21621787,225.86,225.83,0.3497532]
[1734091149127,8.21621787,225.85,225.83,0.3497532]
[1734091149325,8.21621787,225.86,225.83,0.3497532]
[1734091149602,8.21621787,225.85,225.83,0.3497532]
[1734091149738,8.21621787,225.84,225.83,0.3497532]
[1734091153129,11.0667,225.91,225.83,0.3497532]
[1734091153130,20.0,225.88,225.83,0.3497532]
[1734091153571,8.21621787,225.84,225.83,0.3497532]
[1734091162550,20.0,225.88,225.83,0.3497532]
[1734091162750,8.21621787,225.84,225.83,0.3497532]
[1734091164243,20.0,225.88,225.83,0.3497532]
[1734091164469,8.21621787,225.84,225.83,0.3497532]
[1734091171079,41.08108935,225.84,225.83,0.3497532]
[1734091172056,52.15078935,225.84,225.83,0.3497532]
[1734091174255,52.15078935,225.84,225.71,0.12549]
[1734091174579,8.21621787,225.75,225.71,0.12549]
[1734091174769,32.86487148,225.83,225.7,6.1686]
[1734091174770,8.21621787,225.74,225.7,6.1686]
[1734091175675,8.21621787,225.73,225.7,6.1686]
[1734091176354,8.21621787,225.73,225.71,0.12549]
[1734091177175,8.21621787,225.74,225.71,0.12549]
[1734091178472,8.21621787,225.73,225.71,0.12549]
[1734091180666,8.21621787,225.72,225.69,1.6086]
[1734091180867,39.32950716,225.82,225.64,7.9688]
[1734091180868,8.21621787,225.7,225.64,7.9688]
[1734091181073,8.21621787,225.68,225.64,7.9688]
[1734091182176,8.21621787,225.68,225.65,23.776884]
[1734091183078,8.21621787,225.68,225.64,7.9688]
[1734091183279,11.0732,225.77,225.64,7.9688]
[1734091183280,8.21621787,225.67,225.64,7.9688]
[1734091184789,8.21621787,225.67,225.65,0.12549]
[1734091189468,11.0732,225.77,225.65,0.12549]
[1734091189659,8.21621787,225.67,225.65,0.12549]
[1734091190568,8.21621787,225.66,225.64,1.5974]
[1734091192459,8.21621787,225.66,225.62,23.902374]
[1734091193064,8.21621787,225.64,225.62,0.12549]
[1734091193272,8.21621787,225.63,225.62,0.12549]
[1734091194084,8.21621787,225.63,225.61,0.5352338]
[1734091194266,32.86487148,225.72,225.61,0.5352338]
[1734091194267,8.21621787,225.62,225.61,0.5352338]
[1734091199694,20.0,225.69,225.61,0.5352338]
[1734091199990,8.21621787,225.64,225.61,0.5352338]
[1734091200389,8.21621787,225.63,225.61,0.5352338]
[1734091200787,11.0739,225.76,225.62,32.24408187]
[1734091201094,8.21621787,225.7,225.64,32.11859187]
[1734091202810,1.5748,225.78,225.66,8.21621787]
[1734091203099,8.21621787,225.72,225.67,0.12549]
[1734091203398,8.21621787,225.72,225.67,23.902374]
[1734091203575,8.21621787,225.73,225.67,32.78312137]
[1734091203978,1.5748,225.78,225.67,32.78312137]
[1734091204173,1.6319,225.83,225.7,0.12549]
[1734091204397,8.21621787,225.76,225.71,0.12549]
[1734091206377,8.21621787,225.78,225.71,39.78939187]
[1734091206692,8.21621787,225.77,225.71,39.78939187]
[1734091206908,8.21621787,225.78,225.73,0.12549]
[1734091207081,8.21621787,225.8,225.75,0.12549]
[1734091208191,8.21621787,225.78,225.74,0.12549]
[1734091208578,12.6209,225.88,225.74,0.12549]
[1734091208579,8.21621787,225.79,225.74,0.12549]
[1734091208994,12.6209,225.88,225.74,9.00602198]
[1734091208995,20.0,225.85,225.74,9.00602198]
[1734091209279,20.0,225.85,225.74,0.78980411]
[1734091209280,8.21621787,225.79,225.74,0.78980411]
[1734091209486,20.0,225.85,225.74,0.78980411]
[1734091209700,8.21621787,225.79,225.74,0.78980411]
[1734091210204,20.0,225.85,225.74,0.78980411]
[1734091210384,8.21621787,225.8,225.74,0.78980411]
[1734091210996,8.21621787,225.81,225.75,32.11859187]
[1734091211182,8.21621787,225.79,225.74,0.66425358]
[1734091211498,8.21621787,225.78,225.73,23.902374]
[1734091212782,8.21621787,225.79,225.73,23.902374]
[1734091213619,20.0,225.87,225.74,9.00604969]
[1734091213907,8.21621787,225.83,225.78,0.12549]
[1734091216313,5.55319707,225.91,225.78,8.34170787]
[1734091216496,8.21621787,225.86,225.8,8.21621787]
[1734091216690,8.21621787,225.85,225.79,8.21621787]
[1734091217111,8.21621787,225.85,225.8,0.12549]
[1734091217303,11.0652,225.94,225.81,8.21621787]
[1734091217489,5.55319707,225.96,225.83,8.21621787]
[1734091217689,11.0633,225.98,225.86,23.902374]
[1734091217889,1.6265,225.99,225.86,24.56633744]
[1734091218088,1.6265,225.99,225.86,32.78255531]
[1734091218318,8.21621787,225.94,225.89,0.12549]
[1734091218621,8.21621787,225.93,225.89,0.12549]
[1734091218780,8.21621787,225.92,225.88,0.12549]
[1734091219300,8.21621787,225.91,225.87,0.25098]
[1734091219992,8.21621787,225.88,225.85,0.12549]
[1734091220194,8.21621787,225.86,225.8,16.93837911]
[1734091220392,8.21621787,225.86,225.8,8.0582]
[1734091220710,32.86487148,225.94,225.8,8.0582]
[1734091220711,8.21621787,225.85,225.8,8.0582]
[1734091221189,32.86487148,225.94,225.82,8.21621787]
[1734091221389,8.21621787,225.89,225.82,8.21621787]
[1734091222012,8.21621787,225.89,225.83,24.027864]
[1734091222784,8.21621787,225.88,225.83,24.69190678]
[1734091224290,8.21621787,225.88,225.83,24.027864]
[1734091225810,8.21621787,225.87,225.83,0.25098]
[1734091226912,8.21621787,225.89,225.83,8.46719787]
[1734091227100,8.21621787,225.89,225.85,0.12549]
[1734091228303,8.21621787,225.9,225.85,0.25098]
[1734091228513,8.21621787,225.89,225.85,0.12549]
[1734091228827,8.21621787,225.87,225.84,0.25098]
[1734091229312,8.21621787,225.89,225.84,0.25098]
[1734091229710,8.21621787,225.9,225.85,23.776884]
[1734091230105,8.21621787,225.9,225.86,0.25098]
[1734091230409,8.21621787,225.89,225.86,0.25098]
[1734091230611,8.21621787,225.87,225.84,0.12549]
[1734091231211,8.21621787,225.87,225.83,0.25098]
[1734091232832,8.21621787,225.86,225.83,0.12549]
[1734091232995,8.21621787,225.85,225.81,0.25098]
[1734091233194,8.21621787,225.83,225.77,8.88028335]
[1734091233393,8.21621787,225.82,225.8,1.5888]
[1734091233698,8.21621787,225.82,225.76,8.8804601]
[1734091235515,8.21621787,225.82,225.77,24.027864]
[1734091235818,11.0653,225.93,225.79,32.24408187]
[1734091235819,8.21621787,225.85,225.79,32.24408187]
[1734091236313,8.21621787,225.84,225.79,24.027864]
[1734091242726,8.21621787,225.86,225.81,24.027864]
[1734091242927,8.21621787,225.87,225.81,32.24408187]
[1734091243507,8.21621787,225.86,225.81,24.027864]
[1734091243927,8.21621787,225.87,225.81,32.24408187]
[1734091248628,20.0,225.93,225.81,32.24408187]
[1734091248805,8.21621787,225.87,225.81,32.24408187]
[1734091249123,8.21621787,225.87,225.81,0.25098]
[1734091250319,8.21621787,225.87,225.82,23.776884]
[1734091250708,8.21621787,225.87,225.83,0.12549]
[1734091253935,20.0,225.93,225.83,0.12549]
[1734091254238,8.21621787,225.87,225.83,0.12549]
[1734091255322,1.6077,225.95,225.83,0.25098]
[1734091255528,28.24289939,225.96,225.85,8.46719787]
[1734091255841,8.21621787,225.93,225.87,23.902374]
[1734091256736,28.24289939,225.96,225.88,0.12549]
[1734091256937,28.24289939,225.96,225.89,23.902374]
[1734091257244,8.21621787,225.95,225.89,23.902374]
[1734091257445,8.21621787,225.94,225.89,23.902374]
[1734091258138,8.21621787,225.93,225.89,0.12549]
[1734091258337,8.21621787,225.92,225.87,0.25098]
[1734091258644,8.21621787,225.92,225.87,24.027864]
[1734091259031,8.21621787,225.93,225.87,24.027864]
[1734091259744,8.21621787,225.93,225.87,32.24408187]
[1734091260840,8.21621787,225.9,225.87,23.902374]
[1734091261033,8.21621787,225.9,225.85,0.12549]
[1734091261234,8.21621787,225.9,225.84,24.027864]
[1734091263632,8.21621787,225.88,225.84,23.776884]
[1734091264362,8.21621787,225.86,225.8,8.21621787]
[1734091265065,8.21621787,225.86,225.81,0.25098]
[1734091265428,8.21621787,225.86,225.81,24.027864]
[1734091268963,11.0658,225.93,225.81,24.027864]
[1734091268964,8.21621787,225.87,225.81,8.46719787]
[1734091269161,8.21621787,225.87,225.82,23.776884]
[1734091270165,32.86487148,225.94,225.83,8.34170787]
[1734091270334,8.21621787,225.89,225.83,8.34170787]
[1734091270658,8.21621787,225.91,225.85,8.34170787]
[1734091271530,8.21621787,225.91,225.86,23.776884]
[1734091271829,8.21621787,225.95,225.89,23.902374]
[1734091272439,8.21621787,225.95,225.89,32.11859187]
[1734091274039,36.45911726,225.96,225.9,8.21621787]
[1734091276037,36.45911726,225.96,225.89,23.902374]
[1734091276038,8.21621787,225.95,225.89,8.34170787]
[1734091276233,28.24289939,225.96,225.89,8.34170787]
[1734091276234,8.21621787,225.94,225.89,0.12549]
[1734091276645,8.21621787,225.94,225.89,0.25098]
[1734091277544,8.21621787,225.95,225.89,0.25098]
[1734091280058,8.21621787,225.94,225.89,0.25098]
[1734091280254,8.21621787,225.93,225.89,0.12549]
[1734091281156,8.21621787,225.94,225.89,0.12549]
[1734091282063,8.21621787,225.95,225.89,0.12549]
[1734091282260,8.21621787,225.95,225.89,23.902374]
[1734091282847,36.45911726,225.96,225.89,8.34170787]
[1734091283149,8.21621787,225.95,225.88,8.46719787]
[1734091283346,8.21621787,225.95,225.89,23.902374]
[1734091288147,8.21621787,225.95,225.88,8.21621787]
[1734091288964,28.24289939,225.96,225.89,8.21621787]
[1734091288965,36.45911726,225.96,225.89,8.21621787]
[1734091292272,8.21621787,225.95,225.88,8.21621787]
[1734091299780,36.45911726,225.96,225.89,8.21621787]
[1734091301057,8.21621787,225.95,225.88,8.21621787]
[1734091302371,8.21621787,225.92,225.86,16.43561787]
[1734091302954,8.21621787,225.93,225.87,8.21621787]
[1734091304777,8.21621787,225.94,225.87,8.21621787]
[1734091307275,8.21621787,225.93,225.87,8.21621787]
[1734091308674,8.21621787,225.93,225.86,8.2194]
[1734091308977,8.21621787,225.93,225.87,8.21621787]
[1734091311656,8.21621787,225.94,225.88,8.21621787]
[1734091313256,8.21621787,225.94,225.87,8.21621787]
[1734091314483,28.24289939,225.96,225.87,8.21621787]
[1734091314484,8.21621787,225.93,225.87,8.21621787]
[1734091315784,8.21621787,225.94,225.88,8.21621787]
[1734091315960,28.24289939,225.96,225.91,8.21621787]
[1734091316154,28.24289939,225.96,225.94,8.21621787]
[1734091317283,28.24289939,225.96,225.91,0.25098]
[1734091317470,28.24289939,225.96,225.93,8.21621787]
[1734091321485,8.21621787,226.02,225.95,32.11859187]
[1734091321689,6.89255562,226.11,225.99,8.21621787]
[1734091321887,8.21621787,226.06,225.99,8.21621787]
[1734091322484,8.21621787,226.06,226.0,8.21621787]
[1734091323664,11.0565,226.11,226.0,8.21621787]
[1734091323665,20.0,226.08,226.0,8.21621787]
[1734091323887,8.21621787,226.07,226.0,8.21621787]
[1734091324177,8.21621787,226.06,226.0,8.21621787]
[1734091324382,8.21621787,226.06,225.99,8.21621787]
[1734091329090,20.0,226.08,225.99,8.21621787]
[1734091329308,8.21621787,226.06,225.99,8.21621787]
[1734091330095,8.21621787,226.05,225.99,8.21621787]
[1734091332411,8.21621787,226.03,225.97,8.21621787]
[1734091332613,8.21621787,226.03,225.98,23.902374]
[1734091335619,8.21621787,226.03,225.98,0.12549]
[1734091335910,8.21621787,226.03,225.97,8.21621787]